{"text_format":"1","workbook":"xlsx","n_sheets":2,"sheets":["見積表紙別カタログ有","見積表紙別カタログ有 (2)"],"not_rendered":{"charts":0,"images":0,"macros":1,"external_links":0,"defined_names":268,"comments":0,"pivot_tables":0},"unopened":[],"bounds":{"document_bytes":16777216,"sheet_cells":100000,"rows_first":2000,"rows_last":500,"rows_between":2000,"halvings":0,"cell_chars":16384,"cell_head_chars":4096},"cells_cut":0,"cells_raw":0,"read":"whole","date_system":"1900"}

{"sheet":"見積表紙別カタログ有","index":0,"n_rows":150,"n_cols":6,"rows_kept":150,"cut":false,"hidden":false,"merged":[[104,0,105,0],[5,1,5,2],[11,1,11,4],[14,0,15,0],[16,0,17,0],[68,0,69,0],[12,0,13,0],[8,0,8,2],[9,0,9,2],[1,0,1,5],[20,0,21,0],[76,0,77,0],[86,0,87,0],[94,0,95,0],[114,0,115,0],[124,0,125,0],[126,0,127,0],[136,0,137,0],[149,0,159,5]]}
["（仕様書１）"]
["什器備品仕様書"]
["１　納入場所","　埼玉県狭山市加佐志１３９－１"]
[null,"　社会福祉法人東雲会（当該各室）"]
[]
["２　納入期限","　令和2年11月1日"]
[]
["３　物品及び数量"]
["注１　参考商品と同色又は近似色とする"]
["注２　参考商品と同価格帯以上のものとする"]
["注３　参考メーカー：(株)オカムラ"]
["品名","参考商品記号・寸法・仕様",null,null,null,"数量"]
["【１F】"]
[null,""]
["風除室"]
[]
["傘立て","Ｌ９７５　傘立て　オープンタイプ　７９８Ｗ"]
[null,"  798W300D500H          ｱﾙﾐ",null,null,"L975AB A01",1]
[]
[]
["相談・応接室"]
[]
[null,"Ｌｉｖｅｓミーティングテーブル　４本丸脚アジャスター／矩形　1800×900×720"]
[null,"  1800W900D720H         ﾁｮｰｸﾄﾞｴﾙﾑ/ﾈｵﾌﾞﾗｯｸ",null,null,"87AJAM MES1",1]
[null,"ライブス　カフェチェア　４本脚　座パッド付　ブラックフレーム　MW71シェル"]
[null,"  525W520D760H440SH     ﾀﾞｰｸﾌﾞﾗｳﾝ",null,null,"L423AQ FXW3",6]
[]
[]
["静養室"]
[]
[null,"Ｌｉｖｅｓミーティングテーブル　４本丸脚アジャスター／矩形　７５０×７５０×７２０"]
[null,"  750W750D720H          ﾁｮｰｸﾄﾞｴﾙﾑ/ﾈｵﾌﾞﾗｯｸ",null,null,"87AJAE MES1",1]
[null,"ケッテ　クローズ脚　座パッドタイプ　背パッドなし　ブラックフレーム　"]
[null,"  512W532D781H          ﾁｬｺｰﾙｸﾞﾚｰ　ブラックシェル　座面：チャコールグレー",null,null,"8105KG",2]
[]
[]
["事務室"]
[]
[null,"アドバンスＳ　両袖４段引出　左３段引出＋右４段引出"]
[null,"  1400W700D720H         ﾎﾜｲﾄ",null,null,"3VAPAH MK28",1]
[null,"アドバンスＳ　右片袖４段引出　右４段引出（小引出＋小引出＋一般引出＋Ａ４・Ｂ４兼用）"]
[null,"  1100W700D720H         ﾎﾜｲﾄ",null,null,"3VBWAK MK28",6]
[null,"フィノラ，可動肘，ミドル，座クッション，ホワイトＰ，ホワイト脚，ホワイトＢ，"]
[null,"  690W540D910H420SH     ｾｰｼﾞ　ハンガー無，ランバー無",null,null,"C783WW F1G6",1]
[null,"ＣＧ‐Ｍ，肘無，背メッシュ，ハンガー無　ホワイトボディ，ナイロンキャスター"]
[null,"  463W541D824H385-477SH,824-916H  ｾｰｼﾞ",null,null,"CG11WR FZK6",6]
[null,"レクトライン収納　クリスタルケース　Ａ４浅深コンビ"]
[null,"  900W400D1100H         ﾈｵﾎﾜｲﾄ",null,null,"4H03AC ZA75",1]
[null,"レクトライン収納　２枚引違い書庫      "]
[null,"  900W400D1050H         ﾈｵﾎﾜｲﾄ",null,null,"4H43ZZ ZA75",1]
[null,"レクトライン収納　シングルベース      "]
[null,"  900W400D50H           ﾈｵﾎﾜｲﾄ",null,null,"4H92ZZ ZA75",1]
[null,"レクトライン収納　シェルビング        "]
[null,"  900W400D1050H         ﾈｵﾎﾜｲﾄ",null,null,"4H53ZZ ZA75",1]
[null,"レクトライン収納　ラテラル３段        "]
[null,"  900W400D1100H         ﾈｵﾎﾜｲﾄ",null,null,"4H73ZC ZA75",1]
[null,"レクトライン収納　両開き書庫　フラットヒンジ仕様"]
[null,"  900W400D1050H         ﾈｵﾎﾜｲﾄ",null,null,"4H33ZF ZA75",2]
[null,"レクトライン収納　ラテラル３段        "]
[null,"  900W400D1100H         ﾈｵﾎﾜｲﾄ",null,null,"4H73ZC ZA75",2]
[null,"レクトライン収納　３枚引違い書庫      "]
[null,"  900W400D1050H         ﾈｵﾎﾜｲﾄ",null,null,"4H43ZL ZA75",2]
[null,"レクトライン収納　シングルベース      "]
[null,"  900W400D50H           ﾈｵﾎﾜｲﾄ",null,null,"4H92ZZ ZA75",2]
[null,"両開き耐火金庫１Ｈ（シリンダー）      "]
[null,"  900W450D1100H(260KG)  ﾈｵﾎﾜｲﾄ",null,null,"FK4BRA ZA75",1]
[]
[]
["訓練室1／2／3"]
[]
[null,"Ｌｉｖｅｓミーティングテーブル　４本丸脚アジャスター／矩形　１８００×９００×７２０"]
[null,"  1800W900D720H         PWﾗｲﾄ/ﾌﾞﾗｯｸ",null,null,"87AJAM MDA4",6]
[null,"ケッテ　クローズ脚　座パッドタイプ　背パッドなし　ブラックフレーム　ブラックシェル"]
[null,"  512W532D781H          ﾁｬｺｰﾙｸﾞﾚｰ　　座面：チャコールグレー",null,null,"8105XB",36]
[]
[]
["食堂・多目的ホール"]
[]
[null,"Ｌｉｖｅｓミーティングテーブル　４本丸脚アジャスター／矩形　１８００×９００×７２０"]
[null,"  1800W900D720H         PWﾗｲﾄ/ﾌﾞﾗｯｸ",null,null,"87AJAM MDA4",4]
[null,"Ｌｉｖｅｓミーティングテーブル　単柱脚天板固定／丸形　１０５０Φ×７２０"]
[null,"  1050W1050D720H        PWﾗｲﾄ/ﾌﾞﾗｯｸ",null,null,"87ABBP MDA4",4]
[null,"ケッテ　クローズ脚　座パッドタイプ　背パッドなし　ブラックフレーム　ブラックシェル"]
[null,"  512W532D781H          ﾁｬｺｰﾙｸﾞﾚｰ　　座面：チャコールグレー",null,null,"8105XB",40]
[]
[]
["食品庫"]
[]
[null,"６Ｊ中軽量棚　単体型２００ｋｇ天地５段"]
[null,"  1200W470D2100H        ｽﾉｰﾎﾜｲﾄ",null,null,"6J75LG Z269",2]
[null,"６３型　床・壁固定金具                "]
[null,"  4ｺｲﾘ ﾎﾞﾙﾄﾂｷ           ﾕﾆｸﾛﾒｯｷ",null,null,"63301P T03",1]
[]
[]
["休憩・ロッカー室"]
[]
[null,"Ｌｉｖｅｓミーティングテーブル　４本丸脚アジャスター／矩形　１５００×７５０×７２０"]
[null,"  1500W750D720H         PWﾗｲﾄ/ﾌﾞﾗｯｸ",null,null,"87AJAG MDA4",1]
[null,"ケッテ　クローズ脚　座パッドタイプ　背パッドなし　ブラックフレーム　ブラックシェル"]
[null,"  512W532D781H          ﾁｬｺｰﾙｸﾞﾚｰ　　座面：チャコールグレー",null,null,"8105XB",4]
[null,"ＦＺロッカー　３人用シリンダー錠      "]
[null,"  900W515D1790H         ﾗｲﾄｽﾓ-ｸ",null,null,"4573FZ Z13",2]
[]
[]
["倉庫"]
[]
[null,"６Ｊ中軽量棚　単体型２００ｋｇ天地５段"]
[null,"  900W470D2100H         ｽﾉｰﾎﾜｲﾄ",null,null,"6J75LB Z269",2]
[null,"６Ｊ中軽量棚　連結型２００ｋｇ天地５段"]
[null,"  900W470D2100H         ｽﾉｰﾎﾜｲﾄ",null,null,"6J75MB Z269",7]
[null,"６３型　床・壁固定金具                "]
[null,"  4ｺｲﾘ ﾎﾞﾙﾄﾂｷ           ﾕﾆｸﾛﾒｯｷ",null,null,"63301P T03",3]
[]
[]
["倉庫（階段下）"]
[]
[null,"６Ｊ中軽量棚　単体型２００ｋｇ天地５段"]
[null,"  900W470D2100H         ｽﾉｰﾎﾜｲﾄ",null,null,"6J75LB Z269",1]
[null,"６３型　床・壁固定金具                "]
[null,"  4ｺｲﾘ ﾎﾞﾙﾄﾂｷ           ﾕﾆｸﾛﾒｯｷ",null,null,"63301P T03",1]
[]
[]
[]
[]
["【２Ｆ】"]
[]
["食堂・居間"]
[]
[null,"Ｌｉｖｅｓミーティングテーブル　４本丸脚アジャスター／矩形　１８００×９００×７２０"]
[null,"  1800W900D720H         PWﾗｲﾄ/ﾌﾞﾗｯｸ",null,null,"87AJAM MDA4",1]
[null,"Ｌｉｖｅｓミーティングテーブル　単柱脚天板固定／丸形　１０５０Φ×７２０"]
[null,"  1050W1050D720H        PWﾗｲﾄ/ﾌﾞﾗｯｸ",null,null,"87ABBP MDA4",1]
[null,"ケッテ　クローズ脚　座パッドタイプ　背パッドなし　ブラックフレーム　ブラックシェル"]
[null,"  512W532D781H          ﾁｬｺｰﾙｸﾞﾚｰ　　座面：チャコールグレー",null,null,"8105XB",10]
[]
[]
["会議室"]
[]
[null,"マルカ　サイドフォールドテーブル　棚板無　樹脂幕板付　１８００×６００"]
[null,"  1800W600D720H         PWﾐﾃﾞｨｱﾑ/ﾌﾞﾗｯｸ",null,null,"81F5AB MDA5",4]
[null,"マルカ　サイドフォールドテーブル　棚板無　樹脂幕板付　１５００×６００"]
[null,"  1500W600D720H         PWﾐﾃﾞｨｱﾑ/ﾌﾞﾗｯｸ",null,null,"81F5AD MDA5",1]
[null,"ケッテ　クローズ脚　座パッドタイプ　背パッドなし　ブラックフレーム　ブラックシェル"]
[null,"  512W532D781H          ﾁｬｺｰﾙｸﾞﾚｰ　　座面：チャコールグレー",null,null,"8105XB",14]
[null,"４３８０　壁掛ボード／ホワイト        "]
[null,"  1800W78D913H          ﾎ-ﾛ-ﾎﾜｲﾄ",null,null,"4380HA H01",1]
[]
[]
[]
["４　納入条件等\n　① 搬入、据付および調整にかかる経費は落札者の負担とする。\n　② 搬入、据付をする際は建物・設備等に損害を与えないよう必要な処置をすること。\n　③ 納入後１年以内の故障が発生した場合は落札者が無償で修理すること。但しメーカー又は落札\n　　者の保証期間がこれより長い場合はその期間とする。\n　④ 保証期間満了後においても、故障等発生した場合には直ちに対処できる体制とすること。\n　⑤ 取り扱いや操作の方法について十分な説明・指導を行うこと。\n　⑥ 本仕様書に示した機能が全て発揮されるよう施工し、本仕様書に記載されていない場合でも、\n　　技術上または当然必要と思われる事項については、落札者の負担において施工すること。"]

{"sheet":"見積表紙別カタログ有 (2)","index":1,"n_rows":204,"n_cols":31,"rows_kept":204,"cut":false,"hidden":true,"merged":[[11,11,11,13],[23,11,23,13],[24,11,24,13],[25,11,25,13],[26,11,26,13],[12,11,12,13],[13,11,13,13],[14,12,14,13],[15,12,15,13],[16,11,16,13],[22,11,22,13],[0,12,0,13],[7,11,7,13],[8,11,8,13],[9,11,9,13],[10,11,10,13]]}
["1960010186-006",null,null,null,null,"御　　見　　積　　書",null,null,null,null,null,null,"2020-08-03",null,null,null,0]
[null,null,null,null,null,null,null,null,null,null,null,null,null,"43B-2P300",null,null,42]
[null,"株式会社　フカワビジネス  御中","株式会社　フカワビジネス  御中",null,null,null,null,null,null,null,null,null,null,null,null,null,"2020年8月3日付・第1960010186-006号"]
[]
[null,null,"下記の通り御見積り申し上げます。"]
[null,null,"何卒、ご用命を賜りますようよろしくお願い申し上げます。"]
[null,null,"御見積金額",null,null,{"$f":"$L201","v":4096600},"-"]
[null,null,null,null,null,null,null,null,null,null,null,"株式会社オカムラ"]
[null,null,null,null,null,null,null,null,null,null,null,"大宮支店"]
[null,null,null,null,null,null,null,null,null,null,null,"　"]
[null,null,null,null,null,null,null,null,null,null,null,"〒 330-6017"]
[null,null,null,null,null,null,null,null,null,null,null,"埼玉県さいたま市中央区新都心１１‐２"]
[null,null,"本御見積金額には消費税等は含まれません。",null,null,null,null,null,null,null,null,"明治安田生命さいたま新都心ビル"]
[null,null,null,null,null,null,null,null,null,null,null,"ランド・アクシス・タワー１７階"]
[null,null,"件　　　名　：",null,null,"（仮称）生活支援事業所あさひ新築工事",null,null,null,null,null,null,"TEL  048-601-2561"]
[null,null,"納　　　期　：",null,null,"別途御打ち合わせによる",null,null,null,null,null,null,"FAX  048-601-2560"]
[null,null,"受　渡　地　：",null,null,"生活支援事業所あさひ"]
[null,null,"御支払条件　：",null,null,"毎月末日締切　　　　"]
[null,null,null,null,null,"10万円未満 翌月末日 振込 御支払"]
[null,null,null,null,null,"10万円以上 翌月末日 60日 手形 御支払"]
[]
[]
[]
[]
[]
[]
[null,null,"見積有効期限：",null,null,"30日間"]
[null,null,"備　　考　　："]
[]
[]
[null,null,"この見積は平日・標準条件での納入の見積になります。土日祝日等の納品の場合は再度見積提示させて頂きます。"]
[null,null,null,null,null,null,null,null,null,null,null,null,null,"(単位：円)"]
[null,"区分","行№","項目No","品名・寸法・仕様",null,null,"製品","数量","単位","単価","金額","定価","ｶﾀﾛｸﾞ頁","備考",null,null,"環境対応",null,"集計番号","生産準備／廃番情報","Eタイプ"]
[null,"1",1,null,"【１Ｆ】",null,null,null,null,null,null,null,null,null,null,null,null,null,null,"1000"]
[null,null,null,null,"",null,null,null,null,null,null,null,null,null,null,null,null,null,null,null,null,null,null,null,null,null,null,null,null," "," "]
[null,"2",2,null,"◆風除室",null,null,null,null,null,null,null,null,null,null,null,null,null,null,"1100"]
[null,null,null,null,null,null,null,null,null,null,null,null,null,null,null,null,null,null,null,null,null,null,null,null,null,null,null,null,null," "," "]
[null,null,3,"001","Ｌ９７５　傘立て　オープンタイプ　７９８Ｗ",null,null,null,null,null,null,null,null,""]
[null,null,null,null,"  798W300D500H          ｱﾙﾐ",null,null,"L975AB A01",1,"台",17100,{"$f":"ROUNDUP($I$39*$K$39, 0)","v":17100},34300,"P823",null,null,null,null,null,null,null,null,"798W300D500H        ","ｱﾙﾐ",null,null,null,null,null,"1","1"]
[]
[null,null,null,null,null,null,null,null,null,null,"【 小  計 】",{"$f":"IF(COUNTIF($K37:$K40,\"【金額小計】\")=0, SUM($L37:$L40),SUMIF($K37:$K40,\"【金額小計】\",$L37:$L40)+SUMIF($K37:$K40,\"【出精値引】\",$L37:$L40))","v":17100}]
[null,"4",4,null,"◆相談・応接室",null,null,null,null,null,null,null,null,null,null,null,null,null,null,"1200"]
[null,null,null,null,null,null,null,null,null,null,null,null,null,null,null,null,null,null,null,null,null,null,null,null,null,null,null,null,null," "," "]
[null,null,5,"001","Ｌｉｖｅｓミーティングテーブル　４本丸脚アジャスター／矩形　１８００×９００×７２０",null,null,null,null,null,null,null,null,""]
[null,null,null,null,"  1800W900D720H         ﾁｮｰｸﾄﾞｴﾙﾑ/ﾈｵﾌﾞﾗｯｸ",null,null,"87AJAM MES1",1,"台",37200,{"$f":"ROUNDUP($I$45*$K$45, 0)","v":37200},74500,"P65",null,null,null,null,null,null,null,null,"1800W900D720H       ","ﾁｮｰｸﾄﾞｴﾙﾑ/ﾈｵﾌﾞﾗｯｸ",null,null,null,null,null,"1","1"]
[null,null,6,"002","ライブス　カフェチェア　４本脚　座パッド付　ブラックフレーム　MW71シェル",null,null,null,null,null,null,null,null,""]
[null,null,null,null,"  525W520D760H440SH     ﾀﾞｰｸﾌﾞﾗｳﾝ",null,null,"L423AQ FXW3",6,"脚",25600,{"$f":"ROUNDUP($I$47*$K$47, 0)","v":153600},51270,"P75",null,null,null,null,null,null,null,null,"525W520D760H440SH   ","ﾀﾞｰｸﾌﾞﾗｳﾝ",null,null,null,null,null,"1","1"]
[]
[null,null,null,null,null,null,null,null,null,null,"【 小  計 】",{"$f":"IF(COUNTIF($K43:$K48,\"【金額小計】\")=0, SUM($L43:$L48),SUMIF($K43:$K48,\"【金額小計】\",$L43:$L48)+SUMIF($K43:$K48,\"【出精値引】\",$L43:$L48))","v":190800}]
[null,"7",7,null,"◆診察・医務室",null,null,null,null,null,null,null,null,null,null,null,null,null,null,"1300"]
[null,null,null,null,null,null,null,null,null,null,null,null,null,null,null,null,null,null,null,null,null,null,null,null,null,null,null,null,null," "," "]
[null,null,8,"001","Ｌｉｖｅｓミーティングテーブル　４本丸脚アジャスター／矩形　７５０×７５０×７２０",null,null,null,null,null,null,null,null,""]
[null,null,null,null,"  750W750D720H          ﾁｮｰｸﾄﾞｴﾙﾑ/ﾈｵﾌﾞﾗｯｸ",null,null,"87AJAE MES1",1,"台",23000,{"$f":"ROUNDUP($I$53*$K$53, 0)","v":23000},46100,"P65",null,null,null,null,null,null,null,null,"750W750D720H        ","ﾁｮｰｸﾄﾞｴﾙﾑ/ﾈｵﾌﾞﾗｯｸ",null,null,null,null,null,"1","1"]
[null,null,9,"002","ケッテ　クローズ脚　座パッドタイプ　背パッドなし　ブラックフレーム　ブラックシェル　座面：チャコールグレー",null,null,null,null,null,null,null,null,""]
[null,null,null,null,"  512W532D781H          ﾁｬｺｰﾙｸﾞﾚｰ",null,null,"8105KG",2,"脚",7600,{"$f":"ROUNDUP($I$55*$K$55, 0)","v":15200},null,"P396",null,null,null,null,null,null,null,null,"512W532D781H        ","ﾁｬｺｰﾙｸﾞﾚｰ"]
[]
[null,null,null,null,null,null,null,null,null,null,"【 小  計 】",{"$f":"IF(COUNTIF($K51:$K56,\"【金額小計】\")=0, SUM($L51:$L56),SUMIF($K51:$K56,\"【金額小計】\",$L51:$L56)+SUMIF($K51:$K56,\"【出精値引】\",$L51:$L56))","v":38200}]
[null,"12",10,null,"◆事務室",null,null,null,null,null,null,null,null,null,null,null,null,null,null,"1400"]
[null,null,null,null,null,null,null,null,null,null,null,null,null,null,null,null,null,null,null,null,null,null,null,null,null,null,null,null,null," "," "]
[null,null,11,"001","アドバンスＳ　両袖４段引出　左３段引出＋右４段引出",null,null,null,null,null,null,null,null,""]
[null,null,null,null,"  1400W700D720H         ﾎﾜｲﾄ",null,null,"3VAPAH MK28",1,"台",66400,{"$f":"ROUNDUP($I$61*$K$61, 0)","v":66400},132830,"P258",null,null,null,null,null,null,null,null,"1400W700D720H       ","ﾎﾜｲﾄ",null,null,null,null,null,"1","1"]
[null,null,12,"002","アドバンスＳ　右片袖４段引出　右４段引出（小引出＋小引出＋一般引出＋Ａ４・Ｂ４兼用）",null,null,null,null,null,null,null,null,""]
[null,null,null,null,"  1100W700D720H         ﾎﾜｲﾄ",null,null,"3VBWAK MK28",6,"台",44400,{"$f":"ROUNDUP($I$63*$K$63, 0)","v":266400},88850,"P258",null,null,null,null,null,null,null,null,"1100W700D720H       ","ﾎﾜｲﾄ",null,null,null,null,null,"1","1"]
[null,null,13,"003","フィノラ，可動肘，ミドル，座クッション，ホワイトＰ，ホワイト脚，ホワイトＢ，ハンガー無，ランバー無",null,null,null,null,null,null,null,null,""]
[null,null,null,null,"  690W540D910H420SH     ｾｰｼﾞ",null,null,"C783WW F1G6",1,"脚",69600,{"$f":"ROUNDUP($I$65*$K$65, 0)","v":69600},139200,"P308",null,null,null,null,null,null,null,null,"690W540D910H420SH   ","ｾｰｼﾞ",null,null,null,null,null,"1","1"]
[null,null,14,"004","ＣＧ‐Ｍ，肘無，背メッシュ，ハンガー無　ホワイトボディ，ナイロンキャスター",null,null,null,null,null,null,null,null,""]
[null,null,null,null,"  463W541D824H385-477SH,824-916H  ｾｰｼﾞ",null,null,"CG11WR FZK6",6,"脚",18600,{"$f":"ROUNDUP($I$67*$K$67, 0)","v":111600},37200,"P352",null,null,null,null,null,null,null,null,"463W541D824H385-477SH,824-916H","ｾｰｼﾞ",null,null,null,null,null,"2","1"]
[null,null,15,"005","レクトライン収納　クリスタルケース　Ａ４浅深コンビ",null,null,null,null,null,null,null,null,""]
[null,null,null,null,"  900W400D1100H         ﾈｵﾎﾜｲﾄ",null,null,"4H03AC ZA75",1,"台",65400,{"$f":"ROUNDUP($I$69*$K$69, 0)","v":65400},130800,"P595",null,null,null,null,null,null,null,null,"900W400D1100H       ","ﾈｵﾎﾜｲﾄ",null,null,null,null,null,"1","1"]
[null,null,16,"006","レクトライン収納　２枚引違い書庫      ",null,null,null,null,null,null,null,null,""]
[null,null,null,null,"  900W400D1050H         ﾈｵﾎﾜｲﾄ",null,null,"4H43ZZ ZA75",1,"台",27100,{"$f":"ROUNDUP($I$71*$K$71, 0)","v":27100},54300,"P594",null,null,null,null,null,null,null,null,"900W400D1050H       ","ﾈｵﾎﾜｲﾄ",null,null,null,null,null,"1","1"]
[null,null,17,"007","レクトライン収納　シングルベース      ",null,null,null,null,null,null,null,null,""]
[null,null,null,null,"  900W400D50H           ﾈｵﾎﾜｲﾄ",null,null,"4H92ZZ ZA75",1,"台",5100,{"$f":"ROUNDUP($I$73*$K$73, 0)","v":5100},10200,"P603",null,null,null,null,null,null,null,null,"900W400D50H         ","ﾈｵﾎﾜｲﾄ",null,null,null,null,null,"2"]
[null,null,18,"008","レクトライン収納　シェルビング        ",null,null,null,null,null,null,null,null,""]
[null,null,null,null,"  900W400D1050H         ﾈｵﾎﾜｲﾄ",null,null,"4H53ZZ ZA75",1,"台",17700,{"$f":"ROUNDUP($I$75*$K$75, 0)","v":17700},35400,"P594",null,null,null,null,null,null,null,null,"900W400D1050H       ","ﾈｵﾎﾜｲﾄ",null,null,null,null,null,"1","1"]
[null,null,null,null,null,null,null,null,null,null,null,null,null,"(単位：円)"]
[null,"区分","行№","項目No","品名・寸法・仕様",null,null,"製品","数量","単位","単価","金額","定価","ｶﾀﾛｸﾞ頁","備考",null,null,"環境対応",null,"集計番号","生産準備／廃番情報","Eタイプ"]
[null,null,19,"009","レクトライン収納　ラテラル３段        ",null,null,null,null,null,null,null,null,""]
[null,null,null,null,"  900W400D1100H         ﾈｵﾎﾜｲﾄ",null,null,"4H73ZC ZA75",1,"台",55000,{"$f":"ROUNDUP($I$79*$K$79, 0)","v":55000},110100,"P594",null,null,null,null,null,null,null,null,"900W400D1100H       ","ﾈｵﾎﾜｲﾄ",null,null,null,null,null,"1","1"]
[null,null,20,"010","レクトライン収納　両開き書庫　フラットヒンジ仕様",null,null,null,null,null,null,null,null,""]
[null,null,null,null,"  900W400D1050H         ﾈｵﾎﾜｲﾄ",null,null,"4H33ZF ZA75",2,"台",27400,{"$f":"ROUNDUP($I$81*$K$81, 0)","v":54800},54900,"P593",null,null,null,null,null,null,null,null,"900W400D1050H       ","ﾈｵﾎﾜｲﾄ",null,null,null,null,null,"1","1"]
[null,null,21,"011","レクトライン収納　ラテラル３段        ",null,null,null,null,null,null,null,null,""]
[null,null,null,null,"  900W400D1100H         ﾈｵﾎﾜｲﾄ",null,null,"4H73ZC ZA75",2,"台",55000,{"$f":"ROUNDUP($I$83*$K$83, 0)","v":110000},110100,"P594",null,null,null,null,null,null,null,null,"900W400D1100H       ","ﾈｵﾎﾜｲﾄ",null,null,null,null,null,"1","1"]
[null,null,22,"012","レクトライン収納　３枚引違い書庫      ",null,null,null,null,null,null,null,null,""]
[null,null,null,null,"  900W400D1050H         ﾈｵﾎﾜｲﾄ",null,null,"4H43ZL ZA75",2,"台",36300,{"$f":"ROUNDUP($I$85*$K$85, 0)","v":72600},72700,"P594",null,null,null,null,null,null,null,null,"900W400D1050H       ","ﾈｵﾎﾜｲﾄ",null,null,null,null,null,"1","1"]
[null,null,23,"013","レクトライン収納　シングルベース      ",null,null,null,null,null,null,null,null,""]
[null,null,null,null,"  900W400D50H           ﾈｵﾎﾜｲﾄ",null,null,"4H92ZZ ZA75",2,"台",5100,{"$f":"ROUNDUP($I$87*$K$87, 0)","v":10200},10200,"P603",null,null,null,null,null,null,null,null,"900W400D50H         ","ﾈｵﾎﾜｲﾄ",null,null,null,null,null,"2"]
[null,null,24,"014","両開き耐火金庫１Ｈ（シリンダー）      ",null,null,null,null,null,null,null,null,""]
[null,null,null,null,"  900W450D1100H(260KG)  ﾈｵﾎﾜｲﾄ",null,null,"FK4BRA ZA75",1,"台",262000,{"$f":"ROUNDUP($I$89*$K$89, 0)","v":262000},524000,"P601",null,null,null,null,null,null,null,null,"900W450D1100H(260KG)","ﾈｵﾎﾜｲﾄ",null,null,null,null,null,"2"]
[]
[null,null,null,null,null,null,null,null,null,null,"【 小  計 】",{"$f":"IF(COUNTIF($K59:$K90,\"【金額小計】\")=0, SUM($L59:$L90),SUMIF($K59:$K90,\"【金額小計】\",$L59:$L90)+SUMIF($K59:$K90,\"【出精値引】\",$L59:$L90))","v":1193900}]
[null,"27",25,null,"◆訓練室１・２・３",null,null,null,null,null,null,null,null,null,null,null,null,null,null,"1500"]
[null,null,null,null,null,null,null,null,null,null,null,null,null,null,null,null,null,null,null,null,null,null,null,null,null,null,null,null,null," "," "]
[null,null,26,"001","Ｌｉｖｅｓミーティングテーブル　４本丸脚アジャスター／矩形　１８００×９００×７２０",null,null,null,null,null,null,null,null,""]
[null,null,null,null,"  1800W900D720H         PWﾗｲﾄ/ﾌﾞﾗｯｸ",null,null,"87AJAM MDA4",6,"台",38300,{"$f":"ROUNDUP($I$95*$K$95, 0)","v":229800},76700,"P65",null,null,null,null,null,null,null,null,"1800W900D720H       ","PWﾗｲﾄ/ﾌﾞﾗｯｸ",null,null,null,null,null,"1","1"]
[null,null,27,"002","ケッテ　クローズ脚　座パッドタイプ　背パッドなし　ブラックフレーム　ブラックシェル　座面：チャコールグレー",null,null,null,null,null,null,null,null,""]
[null,null,null,null,"  512W532D781H          ﾁｬｺｰﾙｸﾞﾚｰ",null,null,"8105XB",36,"脚",7600,{"$f":"ROUNDUP($I$97*$K$97, 0)","v":273600},null,"P396",null,null,null,null,null,null,null,null,"512W532D781H        ","ﾁｬｺｰﾙｸﾞﾚｰ"]
[]
[null,null,null,null,null,null,null,null,null,null,"【 小  計 】",{"$f":"IF(COUNTIF($K93:$K98,\"【金額小計】\")=0, SUM($L93:$L98),SUMIF($K93:$K98,\"【金額小計】\",$L93:$L98)+SUMIF($K93:$K98,\"【出精値引】\",$L93:$L98))","v":503400}]
[null,"30",28,null,"◆食堂・多目的ホール",null,null,null,null,null,null,null,null,null,null,null,null,null,null,"1600"]
[null,null,null,null,null,null,null,null,null,null,null,null,null,null,null,null,null,null,null,null,null,null,null,null,null,null,null,null,null," "," "]
[null,null,29,"001","Ｌｉｖｅｓミーティングテーブル　４本丸脚アジャスター／矩形　１８００×９００×７２０",null,null,null,null,null,null,null,null,""]
[null,null,null,null,"  1800W900D720H         PWﾗｲﾄ/ﾌﾞﾗｯｸ",null,null,"87AJAM MDA4",4,"台",38300,{"$f":"ROUNDUP($I$103*$K$103, 0)","v":153200},76700,"P65",null,null,null,null,null,null,null,null,"1800W900D720H       ","PWﾗｲﾄ/ﾌﾞﾗｯｸ",null,null,null,null,null,"1","1"]
[null,null,30,"002","Ｌｉｖｅｓミーティングテーブル　単柱脚天板固定／丸形　１０５０Φ×７２０",null,null,null,null,null,null,null,null,""]
[null,null,null,null,"  1050W1050D720H        PWﾗｲﾄ/ﾌﾞﾗｯｸ",null,null,"87ABBP MDA4",4,"台",43200,{"$f":"ROUNDUP($I$105*$K$105, 0)","v":172800},86400,"P61",null,null,null,null,null,null,null,null,"1050W1050D720H      ","PWﾗｲﾄ/ﾌﾞﾗｯｸ",null,null,null,null,null,"1","1"]
[null,null,31,"003","ケッテ　クローズ脚　座パッドタイプ　背パッドなし　ブラックフレーム　ブラックシェル　座面：チャコールグレー",null,null,null,null,null,null,null,null,""]
[null,null,null,null,"  512W532D781H          ﾁｬｺｰﾙｸﾞﾚｰ",null,null,"8105XB",40,"脚",7600,{"$f":"ROUNDUP($I$107*$K$107, 0)","v":304000},null,"P396",null,null,null,null,null,null,null,null,"512W532D781H        ","ﾁｬｺｰﾙｸﾞﾚｰ"]
[]
[null,null,null,null,null,null,null,null,null,null,"【 小  計 】",{"$f":"IF(COUNTIF($K101:$K108,\"【金額小計】\")=0, SUM($L101:$L108),SUMIF($K101:$K108,\"【金額小計】\",$L101:$L108)+SUMIF($K101:$K108,\"【出精値引】\",$L101:$L108))","v":630000}]
[null,"34",32,null,"◆食品庫",null,null,null,null,null,null,null,null,null,null,null,null,null,null,"1700"]
[null,null,null,null,null,null,null,null,null,null,null,null,null,null,null,null,null,null,null,null,null,null,null,null,null,null,null,null,null," "," "]
[null,null,33,"001","６Ｊ中軽量棚　単体型２００ｋｇ天地５段",null,null,null,null,null,null,null,null,""]
[null,null,null,null,"  1200W470D2100H        ｽﾉｰﾎﾜｲﾄ",null,null,"6J75LG Z269",2,"連",30100,{"$f":"ROUNDUP($I$113*$K$113, 0)","v":60200},60360,"P680",null,null,null,null,null,null,null,null,"1200W470D2100H      ","ｽﾉｰﾎﾜｲﾄ",null,null,null,null,null,"1","1"]
[null,null,34,"002","６３型　床・壁固定金具                ",null,null,null,null,null,null,null,null,""]
[null,null,null,null,"  4ｺｲﾘ ﾎﾞﾙﾄﾂｷ           ﾕﾆｸﾛﾒｯｷ",null,null,"63301P T03",1,"セット",1300,{"$f":"ROUNDUP($I$115*$K$115, 0)","v":1300},2630,"P682，P694",null,null,null,null,null,null,null,null,"4ｺｲﾘ ﾎﾞﾙﾄﾂｷ         ","ﾕﾆｸﾛﾒｯｷ",null,null,null,null,null,"2"]
[]
[null,null,null,null,null,null,null,null,null,null,"【 小  計 】",{"$f":"IF(COUNTIF($K111:$K116,\"【金額小計】\")=0, SUM($L111:$L116),SUMIF($K111:$K116,\"【金額小計】\",$L111:$L116)+SUMIF($K111:$K116,\"【出精値引】\",$L111:$L116))","v":61500}]
[null,"37",35,null,"◆休憩・ロッカー室",null,null,null,null,null,null,null,null,null,null,null,null,null,null,"1800"]
[null,null,null,null,null,null,null,null,null,null,null,null,null,null,null,null,null,null,null,null,null,null,null,null,null,null,null,null,null," "," "]
[null,null,null,null,null,null,null,null,null,null,null,null,null,"(単位：円)"]
[null,"区分","行№","項目No","品名・寸法・仕様",null,null,"製品","数量","単位","単価","金額","定価","ｶﾀﾛｸﾞ頁","備考",null,null,"環境対応",null,"集計番号","生産準備／廃番情報","Eタイプ"]
[null,null,36,"001","Ｌｉｖｅｓミーティングテーブル　４本丸脚アジャスター／矩形　１５００×７５０×７２０",null,null,null,null,null,null,null,null,""]
[null,null,null,null,"  1500W750D720H         PWﾗｲﾄ/ﾌﾞﾗｯｸ",null,null,"87AJAG MDA4",1,"台",33500,{"$f":"ROUNDUP($I$123*$K$123, 0)","v":33500},67000,"P65",null,null,null,null,null,null,null,null,"1500W750D720H       ","PWﾗｲﾄ/ﾌﾞﾗｯｸ",null,null,null,null,null,"1","1"]
[null,null,37,"002","ケッテ　クローズ脚　座パッドタイプ　背パッドなし　ブラックフレーム　ブラックシェル　座面：チャコールグレー",null,null,null,null,null,null,null,null,""]
[null,null,null,null,"  512W532D781H          ﾁｬｺｰﾙｸﾞﾚｰ",null,null,"8105XB",4,"脚",7600,{"$f":"ROUNDUP($I$125*$K$125, 0)","v":30400},null,"P396",null,null,null,null,null,null,null,null,"512W532D781H        ","ﾁｬｺｰﾙｸﾞﾚｰ"]
[null,null,38,"003","ＦＺロッカー　３人用シリンダー錠      ",null,null,null,null,null,null,null,null,""]
[null,null,null,null,"  900W515D1790H         ﾗｲﾄｽﾓ-ｸ",null,null,"4573FZ Z13",2,"台",37300,{"$f":"ROUNDUP($I$127*$K$127, 0)","v":74600},74600,"P667",null,null,null,null,null,null,null,null,"900W515D1790H       ","ﾗｲﾄｽﾓ-ｸ",null,null,null,null,null,"1","1"]
[]
[null,null,null,null,null,null,null,null,null,null,"【 小  計 】",{"$f":"IF(COUNTIF($K119:$K128,\"【金額小計】\")=0, SUM($L119:$L128),SUMIF($K119:$K128,\"【金額小計】\",$L119:$L128)+SUMIF($K119:$K128,\"【出精値引】\",$L119:$L128))","v":138500}]
[null,"41",39,null,"◆倉庫",null,null,null,null,null,null,null,null,null,null,null,null,null,null,"1900"]
[null,null,null,null,null,null,null,null,null,null,null,null,null,null,null,null,null,null,null,null,null,null,null,null,null,null,null,null,null," "," "]
[null,null,40,"001","６Ｊ中軽量棚　単体型２００ｋｇ天地５段",null,null,null,null,null,null,null,null,""]
[null,null,null,null,"  900W470D2100H         ｽﾉｰﾎﾜｲﾄ",null,null,"6J75LB Z269",2,"連",25700,{"$f":"ROUNDUP($I$133*$K$133, 0)","v":51400},51530,"P680",null,null,null,null,null,null,null,null,"900W470D2100H       ","ｽﾉｰﾎﾜｲﾄ",null,null,null,null,null,"1","1"]
[null,null,41,"002","６Ｊ中軽量棚　連結型２００ｋｇ天地５段",null,null,null,null,null,null,null,null,""]
[null,null,null,null,"  900W470D2100H         ｽﾉｰﾎﾜｲﾄ",null,null,"6J75MB Z269",7,"連",22100,{"$f":"ROUNDUP($I$135*$K$135, 0)","v":154700},44310,"P680",null,null,null,null,null,null,null,null,"900W470D2100H       ","ｽﾉｰﾎﾜｲﾄ",null,null,null,null,null,"1","1"]
[null,null,42,"003","６３型　床・壁固定金具                ",null,null,null,null,null,null,null,null,""]
[null,null,null,null,"  4ｺｲﾘ ﾎﾞﾙﾄﾂｷ           ﾕﾆｸﾛﾒｯｷ",null,null,"63301P T03",3,"セット",1300,{"$f":"ROUNDUP($I$137*$K$137, 0)","v":3900},2630,"P682，P694",null,null,null,null,null,null,null,null,"4ｺｲﾘ ﾎﾞﾙﾄﾂｷ         ","ﾕﾆｸﾛﾒｯｷ",null,null,null,null,null,"2"]
[]
[null,null,null,null,null,null,null,null,null,null,"【 小  計 】",{"$f":"IF(COUNTIF($K131:$K138,\"【金額小計】\")=0, SUM($L131:$L138),SUMIF($K131:$K138,\"【金額小計】\",$L131:$L138)+SUMIF($K131:$K138,\"【出精値引】\",$L131:$L138))","v":210000}]
[null,"45",43,null,"◆倉庫（階段下）",null,null,null,null,null,null,null,null,null,null,null,null,null,null,"1A00"]
[null,null,null,null,null,null,null,null,null,null,null,null,null,null,null,null,null,null,null,null,null,null,null,null,null,null,null,null,null," "," "]
[null,null,44,"001","６Ｊ中軽量棚　単体型２００ｋｇ天地５段",null,null,null,null,null,null,null,null,""]
[null,null,null,null,"  900W470D2100H         ｽﾉｰﾎﾜｲﾄ",null,null,"6J75LB Z269",1,"連",25700,{"$f":"ROUNDUP($I$143*$K$143, 0)","v":25700},51530,"P680",null,null,null,null,null,null,null,null,"900W470D2100H       ","ｽﾉｰﾎﾜｲﾄ",null,null,null,null,null,"1","1"]
[null,null,45,"002","６３型　床・壁固定金具                ",null,null,null,null,null,null,null,null,""]
[null,null,null,null,"  4ｺｲﾘ ﾎﾞﾙﾄﾂｷ           ﾕﾆｸﾛﾒｯｷ",null,null,"63301P T03",1,"セット",1300,{"$f":"ROUNDUP($I$145*$K$145, 0)","v":1300},2630,"P682，P694",null,null,null,null,null,null,null,null,"4ｺｲﾘ ﾎﾞﾙﾄﾂｷ         ","ﾕﾆｸﾛﾒｯｷ",null,null,null,null,null,"2"]
[]
[null,null,null,null,null,null,null,null,null,null,"【 小  計 】",{"$f":"IF(COUNTIF($K141:$K146,\"【金額小計】\")=0, SUM($L141:$L146),SUMIF($K141:$K146,\"【金額小計】\",$L141:$L146)+SUMIF($K141:$K146,\"【出精値引】\",$L141:$L146))","v":27000}]
[]
[null,null,null,null,null,null,null,null,null,null,"【 合  計 】",{"$f":"SUM($L35:$L148)+SUMIF($K35:$K148,\"【出精値引】\",$L35:$L148)-SUMIF($K35:$K148,\"【*】\",$L35:$L148)","v":3010400}]
[null,"48",46,null,"【２Ｆ】",null,null,null,null,null,null,null,null,null,null,null,null,null,null,"2000"]
[null,null,null,null,null,null,null,null,null,null,null,null,null,null,null,null,null,null,null,null,null,null,null,null,null,null,null,null,null," "," "]
[null,"49",47,null,"◆食堂・居間",null,null,null,null,null,null,null,null,null,null,null,null,null,null,"2100"]
[null,null,null,null,null,null,null,null,null,null,null,null,null,null,null,null,null,null,null,null,null,null,null,null,null,null,null,null,null," "," "]
[null,null,48,"001","Ｌｉｖｅｓミーティングテーブル　４本丸脚アジャスター／矩形　１８００×９００×７２０",null,null,null,null,null,null,null,null,""]
[null,null,null,null,"  1800W900D720H         PWﾗｲﾄ/ﾌﾞﾗｯｸ",null,null,"87AJAM MDA4",1,"台",38300,{"$f":"ROUNDUP($I$155*$K$155, 0)","v":38300},76700,"P65",null,null,null,null,null,null,null,null,"1800W900D720H       ","PWﾗｲﾄ/ﾌﾞﾗｯｸ",null,null,null,null,null,"1","1"]
[null,null,49,"002","Ｌｉｖｅｓミーティングテーブル　単柱脚天板固定／丸形　１０５０Φ×７２０",null,null,null,null,null,null,null,null,""]
[null,null,null,null,"  1050W1050D720H        PWﾗｲﾄ/ﾌﾞﾗｯｸ",null,null,"87ABBP MDA4",1,"台",43200,{"$f":"ROUNDUP($I$157*$K$157, 0)","v":43200},86400,"P61",null,null,null,null,null,null,null,null,"1050W1050D720H      ","PWﾗｲﾄ/ﾌﾞﾗｯｸ",null,null,null,null,null,"1","1"]
[null,null,50,"003","ケッテ　クローズ脚　座パッドタイプ　背パッドなし　ブラックフレーム　ブラックシェル　座面：チャコールグレー",null,null,null,null,null,null,null,null,""]
[null,null,null,null,"  512W532D781H          ﾁｬｺｰﾙｸﾞﾚｰ",null,null,"8105XB",10,"脚",7600,{"$f":"ROUNDUP($I$159*$K$159, 0)","v":76000},null,"P396",null,null,null,null,null,null,null,null,"512W532D781H        ","ﾁｬｺｰﾙｸﾞﾚｰ"]
[]
[null,null,null,null,null,null,null,null,null,null,"【 小  計 】",{"$f":"IF(COUNTIF($K153:$K160,\"【金額小計】\")=0, SUM($L153:$L160),SUMIF($K153:$K160,\"【金額小計】\",$L153:$L160)+SUMIF($K153:$K160,\"【出精値引】\",$L153:$L160))","v":157500}]
[null,"53",51,null,"◆会議室",null,null,null,null,null,null,null,null,null,null,null,null,null,null,"2200"]
[null,null,null,null,null,null,null,null,null,null,null,null,null,null,null,null,null,null,null,null,null,null,null,null,null,null,null,null,null," "," "]
[null,null,null,null,null,null,null,null,null,null,null,null,null,"(単位：円)"]
[null,"区分","行№","項目No","品名・寸法・仕様",null,null,"製品","数量","単位","単価","金額","定価","ｶﾀﾛｸﾞ頁","備考",null,null,"環境対応",null,"集計番号","生産準備／廃番情報","Eタイプ"]
[null,null,52,"001","マルカ　サイドフォールドテーブル　棚板無　樹脂幕板付　１８００×６００",null,null,null,null,null,null,null,null,""]
[null,null,null,null,"  1800W600D720H         PWﾐﾃﾞｨｱﾑ/ﾌﾞﾗｯｸ",null,null,"81F5AB MDA5",4,"台",46600,{"$f":"ROUNDUP($I$167*$K$167, 0)","v":186400},93300,"P463",null,null,null,null,null,null,null,null,"1800W600D720H       ","PWﾐﾃﾞｨｱﾑ/ﾌﾞﾗｯｸ",null,null,null,null,null,"1","1"]
[null,null,53,"002","マルカ　サイドフォールドテーブル　棚板無　樹脂幕板付　１５００×６００",null,null,null,null,null,null,null,null,""]
[null,null,null,null,"  1500W600D720H         PWﾐﾃﾞｨｱﾑ/ﾌﾞﾗｯｸ",null,null,"81F5AD MDA5",1,"台",44600,{"$f":"ROUNDUP($I$169*$K$169, 0)","v":44600},89200,"P463",null,null,null,null,null,null,null,null,"1500W600D720H       ","PWﾐﾃﾞｨｱﾑ/ﾌﾞﾗｯｸ",null,null,null,null,null,"1","1"]
[null,null,54,"003","ケッテ　クローズ脚　座パッドタイプ　背パッドなし　ブラックフレーム　ブラックシェル　座面：チャコールグレー",null,null,null,null,null,null,null,null,""]
[null,null,null,null,"  512W532D781H          ﾁｬｺｰﾙｸﾞﾚｰ",null,null,"8105XB",14,"脚",7600,{"$f":"ROUNDUP($I$171*$K$171, 0)","v":106400},null,"P396",null,null,null,null,null,null,null,null,"512W532D781H        ","ﾁｬｺｰﾙｸﾞﾚｰ"]
[null,null,55,"004","４３８０　壁掛ボード／ホワイト        ",null,null,null,null,null,null,null,null,""]
[null,null,null,null,"  1800W78D913H          ﾎ-ﾛ-ﾎﾜｲﾄ",null,null,"4380HA H01",1,"台",27100,{"$f":"ROUNDUP($I$173*$K$173, 0)","v":27100},54200,"P722",null,null,null,null,null,null,null,null,"1800W78D913H        ","ﾎ-ﾛ-ﾎﾜｲﾄ",null,null,null,null,null,"1","1"]
[]
[null,null,null,null,null,null,null,null,null,null,"【 小  計 】",{"$f":"IF(COUNTIF($K163:$K174,\"【金額小計】\")=0, SUM($L163:$L174),SUMIF($K163:$K174,\"【金額小計】\",$L163:$L174)+SUMIF($K163:$K174,\"【出精値引】\",$L163:$L174))","v":364500}]
[]
[null,null,null,null,null,null,null,null,null,null,"【 合  計 】",{"$f":"SUM($L151:$L176)+SUMIF($K151:$K176,\"【出精値引】\",$L151:$L176)-SUMIF($K151:$K176,\"【*】\",$L151:$L176)","v":522000}]
[null,"58",56,null,"【作業費】",null,null,null,null,null,null,null,null,null,null,null,null,null,null,"3000"]
[null,null,null,null,null,null,null,null,null,null,null,null,null,null,null,null,null,null,null,null,null,null,null,null,null,null,null,null,null," "," "]
[null,null,57,"001","搬入作業費（責任者）                  ",null,null,null,null,null,null,null,null,""]
[null,null,null,null,"                        ",null,null,"L900KJ",1,"名",29000,{"$f":"ROUNDUP($I$181*$K$181, 0)","v":29000},null,null,null,null,null,null,null,null,null,null,"                    "]
[null,null,58,"002","搬入作業費（一般）                    ",null,null,null,null,null,null,null,null,""]
[null,null,null,null,"                        ",null,null,"L900KJ",7,"名",23000,{"$f":"ROUNDUP($I$183*$K$183, 0)","v":161000},null,null,null,null,null,null,null,null,null,null,"                    "]
[null,null,59,"003","耐火金庫搬入作業費                    ",null,null,null,null,null,null,null,null,""]
[null,null,null,null,"                        ",null,null,"FK00KJ",1,"式",37000,{"$f":"ROUNDUP($I$185*$K$185, 0)","v":37000},null,null,null,null,null,null,null,null,null,null,"                    "]
[null,null,60,"004","組立作業費                            ",null,null,null,null,null,null,null,null,""]
[null,null,null,null,"                        ",null,null,"L900KJ",1,"式",90000,{"$f":"ROUNDUP($I$187*$K$187, 0)","v":90000},null,null,null,null,null,null,null,null,null,null,"                    "]
[null,null,61,null,"  ※平日日中作業とさせていただきます。"]
[null,null,62,null,"  ※養生費含む",null,null,null,null,null,null,null,null,null,null,null,null,null,null,null,null,null,null,null,null,null,null,null,null," "," "]
[null,null,63,null,"  ※既存製品の廃棄は含まれておりません。",null,null,null,null,null,null,null,null,null,null,null,null,null,null,null,null,null,null,null,null,null,null,null,null," "," "]
[null,null,null,null,null,null,null,null,null,null,null,null,null,null,null,null,null,null,null,null,null,null,null,null,null,null,null,null,null," "," "]
[]
[null,null,null,null,null,null,null,null,null,null,"【 合  計 】",{"$f":"IF(COUNTIF($K179:$K192,\"【金額小計】\")=0, SUM($L179:$L192),SUMIF($K179:$K192,\"【金額小計】\",$L179:$L192)+SUMIF($K179:$K192,\"【出精値引】\",$L179:$L192))","v":317000}]
[null,"66",64,null,null,null,null,null,null,null,null,null,null,null,null,null,null,null,null,"4000"]
[null,null,null,null,null,null,null,null,null,null,null,null,null,null,null,null,null,null,null,null,null,null,null,null,null,null,null,null,null," "," "]
[null,null,65,"001","配送費                                ",null,null,null,null,null,null,null,null,""]
[null,null,null,null,"                        ",null,null,"O888PF",1,"式",247200,{"$f":"ROUNDUP($I$197*$K$197, 0)","v":247200},null,null,null,null,null,null,null,null,null,null,"                    "]
[]
[null,null,null,null,null,null,null,null,null,null,"【 合  計 】",{"$f":"IF(COUNTIF($K195:$K198,\"【金額小計】\")=0, SUM($L195:$L198),SUMIF($K195:$K198,\"【金額小計】\",$L195:$L198)+SUMIF($K195:$K198,\"【出精値引】\",$L195:$L198))","v":247200}]
[]
[null,null,null,null,null,null,null,null,null,null,"【見積金額】",{"$f":"IF(COUNTIF($K35:OFFSET(INDIRECT(ADDRESS(ROW(),COLUMN())), -1, -1),\"【 合  計 】\")=0,SUM($L35:OFFSET(INDIRECT(ADDRESS(ROW(),COLUMN())), -1, 0))-SUMIF($K35:OFFSET(INDIRECT(ADDRESS(ROW(),COLUMN())), -1, -1),\"【*】\",$L35:OFFSET(INDIRECT(ADDRESS(ROW(),COLUMN())), -1, 0)),SUM($L35:OFFSET(INDIRECT(ADDRESS(ROW(),COLUMN())), -1, 0))-SUMIF($K35:OFFSET(INDIRECT(ADDRESS(ROW(),COLUMN())), -1, -1),\"【*】\",$L35:OFFSET(INDIRECT(ADDRESS(ROW(),COLUMN())), -1, 0)))","v":4096600}]
[]
[null,null,null,null,"【カタログページ数の表示について】"]
[null,null,null,null,"「オフィス総合カタログ２０２０」 ページ数です。"]